fUSD/lending_fUSD_20240517
["ID","MTS","AMOUNT","RATE_DAILY","PERIOD"]
[327294982,1715969454554,-151.0,0.0001295,2]
[327294983,1715969454567,-151.0,0.0001295,2]
[327294984,1715969454577,-765.450737,0.0001295,2]
[327294985,1715969454586,-301.120175,0.0001295,2]
[327294986,1715969454595,-151.0,0.0001295,2]
[327294987,1715969454605,-151.0,0.0001295,2]
[327294988,1715969454614,-151.0,0.0001295,2]
[327294989,1715969454624,-560.840487,0.0001295,2]
[327294990,1715969454633,-560.840487,0.0001295,2]
[327294991,1715969454643,-253.776587,0.0001295,2]
[327294992,1715969454652,-253.776587,0.0001295,2]
[327294993,1715969454662,-563.911056,0.0001295,2]
[327294994,1715969454671,-563.911056,0.0001295,2]
[327294995,1715969454682,-151.0,0.0001295,2]
[327294996,1715969454692,-151.0,0.0001295,2]
[327294997,1715969454703,-219.081233,0.0001295,2]
[327294998,1715969454712,-219.081233,0.0001295,2]
[327294999,1715969454722,-2973.684982,0.0001295,2]
[327295000,1715969454731,-2973.684982,0.0001295,2]
[327295001,1715969454740,-151.0,0.0001295,2]
[327295002,1715969454751,-1727.802977,0.0001295,2]
[327295003,1715969454760,-1727.802977,0.0001295,2]
[327295004,1715969454769,-3249.690046,0.0001295,2]
[327295005,1715969454780,-246.985208,0.0001295,2]
[327295006,1715969454790,-163.267617,0.0001295,2]
[327295007,1715969454800,-246.985208,0.0001295,2]
[327295008,1715969454810,-3249.690046,0.0001295,2]
[327295009,1715969454820,-163.267617,0.0001295,2]
[327295010,1715969454830,-289.889808,0.0001295,2]
[327295011,1715969454840,-289.889808,0.0001295,2]
[327295012,1715969454850,-151.0,0.0001295,2]
[327295013,1715969454859,-225.0771,0.0001295,2]
[327295014,1715969454869,-240.797916,0.0001295,2]
[327295015,1715969454878,-240.797916,0.0001295,2]
[327295016,1715969454888,-179.893896,0.0001295,2]
[327295017,1715969454898,-185.689765,0.0001295,2]
[327295018,1715969454907,-185.689765,0.0001295,2]
[327295019,1715969454917,-246.21166,0.0001295,2]
[327295020,1715969454927,-340.630876,0.0001295,2]
[327295021,1715969454937,-340.630876,0.0001295,2]
[327295022,1715969454947,-356.190336,0.0001295,2]
[327295023,1715969454957,-356.190336,0.0001295,2]
[327295024,1715969454968,-258.53191,0.0001295,2]
[327295025,1715969454978,-258.53191,0.0001295,2]
[327295026,1715969454987,-232.671246,0.0001295,2]
[327295027,1715969454997,-232.671246,0.0001295,2]
[327295028,1715969455007,-202.615123,0.00012968,2]
[327295029,1715969455017,-151.851773,0.00012968,2]
[327295030,1715969455026,-151.851773,0.00012968,2]
[327295031,1715969455035,-151.851773,0.00012968,2]
[327295032,1715969455045,-1304.93331911,0.0001297,2]
[327295033,1715969455055,-500.0,0.0001297,2]
[327295034,1715969455064,-500.0,0.0001297,2]
[327295035,1715969455074,-804.57429242,0.0001297,2]
[327295036,1715969455084,-367.3543912,0.00012979,2]
[327295037,1715969455094,-872.33007984,0.0001299,2]
[327295038,1715969455103,-500.0,0.0001299,2]
[327295039,1715969455112,-151.0,0.00012991,2]
[327295040,1715969455122,-151.0,0.00012991,2]
[327295041,1715969455131,-151.0,0.00012991,2]
[327295042,1715969455141,-7897.8028615,0.00012991,2]
[327295043,1715969455151,-6930.7249601,0.00012991,2]
[327295044,1715969455160,-5963.6470587,0.00012991,2]
[327295045,1715969455170,-4996.5691573,0.00012991,2]
[327295046,1715969455180,-4029.4912559,0.00012991,2]
[327295047,1715969455189,-12725.1740022,0.00012991,2]
[327295048,1715969455199,-11166.9894305,0.00012991,2]
[327295049,1715969455208,-9608.8048588,0.00012991,2]
[327295050,1715969455218,-8050.6202871,0.00012991,2]
[327295051,1715969455227,-6492.4357154,0.00012991,2]
[327295052,1715969455237,-151.0,0.00012991,2]
[327295053,1715969455247,-1864.4530143,0.00012991,2]
[327295054,1715969455256,-1838.0296501,0.00012991,2]
[327295055,1715969455266,-1811.6062859,0.00012991,2]
[327295056,1715969455275,-1785.1829217,0.00012991,2]
[327295057,1715969455285,-1758.7595576,0.00012991,2]
[327295058,1715969455294,-100356.8538059,0.00012991,2]
[327295059,1715969455304,-98499.1162928,0.00012991,2]
[327295060,1715969455314,-96641.3787797,0.00012991,2]
[327295061,1715969455324,-94783.6412666,0.00012991,2]
[327295062,1715969455334,-92925.9037535,0.00012991,2]
[327295063,1715969455344,-765.450737,0.00012991,2]
[327295064,1715969455354,-2868.3499187,0.00012991,2]
[327295065,1715969455363,-2815.2529847,0.00012991,2]
[327295066,1715969455373,-2762.1560507,0.00012991,2]
[327295067,1715969455383,-2709.0591167,0.00012991,2]
[327295068,1715969455393,-2655.9621827,0.00012991,2]
[327295069,1715969455403,-6265.2943092,0.00012991,2]
[327295070,1715969455413,-6206.488455,0.00012991,2]
[327295071,1715969455422,-6147.6826008,0.00012991,2]
[327295072,1715969455432,-6088.8767466,0.00012991,2]
[327295073,1715969455441,-6030.0708923,0.00012991,2]
[327295074,1715969455451,-151.0,0.00012991,2]
[327295075,1715969455460,-151.0,0.00012991,2]
[327295076,1715969455470,-151.0,0.00012991,2]
[327295077,1715969455484,-265.840048,0.00012991,2]
[327295078,1715969455493,-560.840487,0.00012991,2]
[327295079,1715969455503,-560.840487,0.00012991,2]
[327295080,1715969455512,-560.840487,0.00012991,2]
[327295081,1715969455523,-560.840487,0.00012991,2]
[327295082,1715969455533,-253.776587,0.00012991,2]
[327295083,1715969455542,-253.776587,0.00012991,2]
[327295084,1715969455552,-253.776587,0.00012991,2]
[327295085,1715969455564,-253.776587,0.00012991,2]
[327295086,1715969455574,-563.911056,0.00012991,2]
[327295087,1715969455584,-563.911056,0.00012991,2]
[327295088,1715969455596,-563.911056,0.00012991,2]
[327295089,1715969455606,-563.911056,0.00012991,2]
[327295090,1715969455616,-151.0,0.00012991,2]
[327295091,1715969455626,-151.0,0.00012991,2]
[327295092,1715969455636,-151.0,0.00012991,2]
[327295093,1715969455648,-151.0,0.00012991,2]
[327295094,1715969455659,-219.081233,0.00012991,2]
[327295095,1715969455670,-219.081233,0.00012991,2]
[327295096,1715969455681,-219.081233,0.00012991,2]
[327295097,1715969455692,-219.081233,0.00012991,2]
[327295098,1715969455702,-2973.684982,0.00012991,2]
[327295099,1715969455712,-2973.684982,0.00012991,2]
[327295100,1715969455723,-2973.684982,0.00012991,2]
[327295101,1715969455733,-2973.684982,0.00012991,2]
[327295102,1715969455743,-151.0,0.00012991,2]
[327295103,1715969455753,-151.0,0.00012991,2]
[327295104,1715969455764,-1727.802977,0.00012991,2]
[327295105,1715969455774,-1727.802977,0.00012991,2]
[327295106,1715969455784,-1727.802977,0.00012991,2]
[327295107,1715969455795,-1727.802977,0.00012991,2]
[327295108,1715969455807,-3249.690046,0.00012991,2]
[327295109,1715969455816,-246.985208,0.00012991,2]
[327295110,1715969455826,-3249.690046,0.00012991,2]
[327295111,1715969455836,-246.985208,0.00012991,2]
[327295112,1715969455849,-163.267617,0.00012991,2]
[327295113,1715969455860,-163.267617,0.00012991,2]
[327295114,1715969455870,-246.985208,0.00012991,2]
[327295115,1715969455881,-246.985208,0.00012991,2]
[327295116,1715969455890,-3249.690046,0.00012991,2]
[327295117,1715969455900,-3249.690046,0.00012991,2]
[327295118,1715969455910,-163.267617,0.00012991,2]
[327295119,1715969455919,-163.267617,0.00012991,2]
[327295120,1715969455930,-289.889808,0.00012991,2]
[327295121,1715969455940,-289.889808,0.00012991,2]
[327295122,1715969455950,-289.889808,0.00012991,2]
[327295123,1715969455959,-289.889808,0.00012991,2]
[327295124,1715969455969,-151.0,0.00012991,2]
[327295125,1715969455980,-151.0,0.00012991,2]
[327295126,1715969455991,-240.797916,0.00012991,2]
[327295127,1715969456002,-240.797916,0.00012991,2]
[327295128,1715969456012,-240.797916,0.00012991,2]
[327295129,1715969456022,-240.797916,0.00012991,2]
[327295130,1715969456032,-185.689765,0.00012991,2]
[327295131,1715969456042,-185.689765,0.00012991,2]
[327295132,1715969456052,-185.689765,0.00012991,2]
[327295133,1715969456062,-185.689765,0.00012991,2]
[327295134,1715969456072,-340.630876,0.00012991,2]
[327295135,1715969456082,-340.630876,0.00012991,2]
[327295136,1715969456092,-340.630876,0.00012991,2]
[327295137,1715969456101,-340.630876,0.00012991,2]
[327295138,1715969456112,-356.190336,0.00012991,2]
[327295139,1715969456121,-356.190336,0.00012991,2]
[327295140,1715969456132,-356.190336,0.00012991,2]
[327295141,1715969456142,-356.190336,0.00012991,2]
[327295142,1715969456152,-258.53191,0.00012991,2]
[327295143,1715969456163,-258.53191,0.00012991,2]
[327295144,1715969456173,-258.53191,0.00012991,2]
[327295145,1715969456184,-258.53191,0.00012991,2]
[327295146,1715969456194,-232.671246,0.00012991,2]
[327295147,1715969456203,-232.671246,0.00012991,2]
[327295148,1715969456212,-232.671246,0.00012991,2]
[327295149,1715969456224,-232.671246,0.00012991,2]
[327295150,1715969456233,-178.884681,0.00012995,2]
[327295151,1715969456243,-765.450737,0.00012995,2]
[327295152,1715969456253,-151.0,0.00012996,2]
[327295153,1715969456263,-151.0,0.00012996,2]
[327295154,1715969456273,-166.25309442,0.00012998,2]
[327295155,1715969456283,-202.54139833,0.00012998,2]
[327295156,1715969456292,-177.08401672,0.00012998,2]
[327295157,1715969456302,-248.89383971,0.00012998,2]
[327295158,1715969456312,-413.06779798,0.00012998,2]
[327295159,1715969456322,-155.83651799,0.00012998,2]
[327295160,1715969456332,-194.65788438,0.00012998,2]
[327295161,1715969456342,-156.39881375,0.00012998,2]
[327295162,1715969456352,-527.90615486,0.00012998,2]
[327295163,1715969456362,-98330.46961595,0.00012999,2]
[327295164,1715969456372,-1085583.30504969,0.00013,2]
[327295165,1715969456383,-1996755.28283479,0.00013,2]
[327295166,1715969456779,-23260.74148,0.00013,2]
[327295167,1715969457910,-420.39432128,0.000127,2]
[327295168,1715969458142,-631.50958401,0.00012199,2]
[327295169,1715969458154,-109.25776167,0.00012328,2]
[327295170,1715969458194,-334.16199,0.00012328,2]
[327295171,1715969458226,-56.58024833,0.00012328,2]
[327295172,1715969458235,-500.0,0.00012328,2]
[327295173,1715969458244,-500.0,0.00012328,2]
[327295174,1715969458255,-500.0,0.00012558,2]
[327295175,1715969458264,-110.48515167,0.00012656,2]
[327295176,1715969458539,-40.51484833,0.00012656,2]
[327295177,1715969458549,-151.0,0.00012656,2]
[327295178,1715969458560,-1173.869176,0.00012656,2]
[327295179,1715969458570,-1122.43,0.00012699,2]
[327295180,1715969458579,-500.0,0.00012699,2]
[327295181,1715969458588,-500.0,0.00012699,2]
[327295182,1715969458598,-753.47485472,0.000127,2]
[327295183,1715969458607,-151.0,0.000127,2]
[327295184,1715969458616,-151.0,0.000127,2]
[327295185,1715969458625,-1173.869176,0.000127,2]
[327295186,1715969458635,-500.0,0.00012772,2]
[327295187,1715969458644,-432.98544495,0.00012795,2]
[327295188,1715969458657,-689.44455505,0.00012795,2]
[327295189,1715969458666,-500.0,0.00012795,2]
[327295190,1715969458676,-1173.869176,0.00012796,2]
[327295191,1715969458687,-151.0,0.00012796,2]
[327295192,1715969458696,-537.48,0.00012796,2]
[327295193,1715969458705,-151.0,0.00012796,2]
[327295194,1715969458715,-1173.869176,0.00012796,2]
[327295195,1715969458724,-1122.43,0.00012797,2]
[327295196,1715969458735,-1122.43,0.00012797,2]
[327295197,1715969458747,-1122.43,0.00012797,2]
[327295198,1715969458757,-1122.43,0.00012797,2]
[327295199,1715969458767,-1122.43,0.00012797,2]
[327295200,1715969458777,-1122.43,0.00012797,2]
[327295201,1715969458786,-1122.43,0.00012797,2]
[327295202,1715969458798,-1122.43,0.00012798,2]
[327295203,1715969458808,-1173.869176,0.00012799,2]
[327295204,1715969458819,-1122.43,0.00012799,2]
[327295205,1715969458829,-1122.43,0.00012799,2]
[327295206,1715969458839,-151.0,0.00012799,2]
[327295207,1715969458848,-1122.43,0.00012799,2]
[327295208,1715969458857,-1122.43,0.00012799,2]
[327295209,1715969458867,-1173.869176,0.00012799,2]
[327295210,1715969458877,-1122.43,0.00012799,2]
[327295211,1715969458887,-1122.43,0.00012799,2]
[327295212,1715969458898,-1173.869176,0.000128,2]
[327295213,1715969458907,-151.0,0.000128,2]
[327295214,1715969458917,-1173.869176,0.000128,2]
[327295215,1715969458928,-1173.869176,0.0001288,2]
[327295216,1715969458939,-151.0,0.0001288,2]
[327295217,1715969458948,-1173.869176,0.0001295,2]
[327295218,1715969458959,-1173.869176,0.00012991,2]
[327295219,1715969458969,-1173.869176,0.00012991,2]
[327295220,1715969458978,-37585.1009952,0.00013,2]
[327295221,1715969459010,-1122.43,0.00012799,2]
[327295222,1715969459019,-151.0,0.0001295,2]
[327295223,1715969459029,-156941.20615018,0.00013,2]
[327295224,1715969459041,-66866.0,0.00013,2]
[327295225,1715969459060,-613.54464,0.0001288,2]
[327295226,1715969459071,-293.19358522,0.0001288,2]
[327295227,1715969459105,-772.12499999,0.00012799,2]
[327295228,1715969459116,-350.30500001,0.00012799,2]
[327295229,1715969459126,-267.13095078,0.0001288,2]
[327295230,1715969459135,-1173.869176,0.0001295,2]
[327295231,1715969459144,-151.0,0.00012991,2]
[327295232,1715969459154,-1387.04487321,0.00013,2]
[327295233,1715969459165,-1861.00782249,0.00013,2]
[327295234,1715969459176,-342.19468079,0.00013,2]
[327295238,1715969693829,2503.47,0.0002,30]
[327295245,1715970274788,35710.6340451,0.0002,30]
[327295254,1715970467223,1000.0,0.000235,120]
[327295255,1715970469306,1000.0,0.000235,120]
[327295256,1715970470852,1000.0,0.000235,120]
[327295257,1715970472131,1000.0,0.000235,120]
[327295258,1715970472574,1000.0,0.000235,120]
[327295259,1715970473419,1000.0,0.000235,120]
[327295260,1715970473560,1000.0,0.000235,120]
[327295261,1715970473867,1000.0,0.000235,120]
[327295262,1715970474251,1000.0,0.000235,120]
[327295263,1715970474702,1000.0,0.000235,120]
[327295264,1715970475069,1000.0,0.000235,120]
[327295268,1715970541774,17053.41993419,0.000235,120]
[327295287,1715970582440,-204.80318837,8.928e-05,2]
[327295288,1715970582463,-281.78392074,8.929e-05,2]
[327295289,1715970582486,-402.03430995,8.929e-05,2]
[327295290,1715970582508,-3111.37858094,8.931e-05,2]
[327295291,1715970583311,-278.57836284,8.931e-05,2]
[327295292,1715970583333,-283.73,8.932e-05,2]
[327295293,1715970583354,-499.74209631,9.416e-05,2]
[327295294,1715970583374,-168.37339461,9.421e-05,2]
[327295295,1715970583397,-1000.0,0.00010849,2]
[327295296,1715970583418,-1769.57614624,0.0001086,2]
[327295338,1715970631844,-651.82,0.0001086,2]
[327295339,1715970632165,-20562.55463619,0.0001086,2]
[327295341,1715970632177,-287.87646049,0.0001086,2]
[327295343,1715970632188,-628.17275708,0.0001086,2]
[327295346,1715970632199,-298.8045289,0.0001086,2]
[327295348,1715970632208,-2109.4,0.00010954,2]
[327295350,1715970632218,-150.99,0.00010954,2]
[327295352,1715970632227,-196.35,0.00011079,2]
[327295353,1715970632237,-499.99,0.00011079,2]
[327295354,1715970632247,-250.0,0.00011087,2]
[327295355,1715970632256,-166.58,0.00011135,2]
[327295356,1715970632266,-283.73,0.00011196,2]
[327295357,1715970632276,-151.78,0.00011214,2]
[327295358,1715970632286,-500.0,0.00011218,2]
[327295359,1715970632295,-358.14,0.00011368,2]
[327295360,1715970632305,-179.27,0.00011453,2]
[327295361,1715970632315,-548.53577545,0.00011465,2]
[327295362,1715970632325,-5716.78611786,0.00011591,2]
[327295363,1715970632335,-137725.99457158,0.00012,2]
[327295401,1715970637879,-117590.84226233,0.00012,2]
[327295403,1715970637889,-15003.41,0.00012055,2]
[327295405,1715970637900,-171.4,0.00012064,2]
[327295408,1715970637910,-690.85,0.00012082,2]
[327295410,1715970637921,-523.56,0.00012164,2]
[327295411,1715970637931,-154.6,0.00012164,2]
[327295412,1715970637940,-152.15,0.00012164,2]
[327295413,1715970637952,-1000.0,0.00012205,2]
[327295415,1715970637962,-10000.0,0.00012228,2]
[327295417,1715970637972,-10401.27232249,0.00012228,2]
[327295419,1715970637981,-10401.27232245,0.00012303,2]
[327295421,1715970637991,-6407.876572,0.00012311,2]
[327295423,1715970638000,-1044.975566,0.00012311,2]
[327295425,1715970638010,-719.050868,0.00012311,2]
[327295427,1715970638019,-215.284869,0.00012311,2]
[327295429,1715970638029,-169.510985,0.00012311,2]
[327295431,1715970638038,-215.237881,0.00012311,2]
[327295433,1715970638048,-6535.022694,0.00012311,2]
[327295434,1715970638058,-4960.398503,0.00012311,2]
[327295435,1715970638067,-3766.77272,0.00012311,2]
[327295436,1715970638077,-154.42,0.00012317,2]
[327295437,1715970638086,-2121.3675,0.00012324,2]
[327295438,1715970638096,-155.0,0.00012325,2]
[327295439,1715970638105,-883.0724361,0.00012325,2]
[327295440,1715970638115,-306.15892917,0.00012325,2]
[327295441,1715970638125,-1999.90774757,0.00012325,2]
[327295442,1715970638134,-155.0,0.00012325,2]
[327295443,1715970638143,-496.78827841,0.00012325,2]
[327295444,1715970638153,-204.80318837,0.00012325,2]
[327295445,1715970638162,-281.78392074,0.00012325,2]
[327295446,1715970638172,-155.0,0.00012326,2]
[327295447,1715970638182,-38395.94882605,0.00012327,2]
[327295448,1715970638196,-1694.0,0.00012327,2]
[327295449,1715970638208,-393.39810856,0.00012327,2]
[327295450,1715970638246,-13316.53451999,0.00012327,2]
[327295642,1715970640128,-1048.05051433,0.00012327,2]
[327295646,1715970640140,-751.78460992,0.00012327,2]
[327295651,1715970640286,-18663.45480466,0.00012327,2]
[327295652,1715970640298,-613978.34268233,0.00012327,2]
[327295653,1715970640308,-500.0,0.00012328,2]
[327295655,1715970640319,-589.82772126,0.00012328,2]
[327295657,1715970640329,-500.0,0.00012328,2]
[327295659,1715970640340,-500.0,0.00012328,2]
[327295661,1715970640350,-619.75339231,0.00012328,2]
[327295663,1715970640360,-500.0,0.00012328,2]
[327295665,1715970640371,-422.64,0.00012328,2]
[327295667,1715970640381,-614.23,0.00012328,2]
[327295669,1715970640390,-500.0,0.00012328,2]
[327295671,1715970640400,-500.0,0.00012328,2]
[327295673,1715970640409,-500.0,0.00012328,2]
[327295675,1715970640418,-477.13,0.00012328,2]
[327295677,1715970640428,-187.01172638,0.00012328,2]
[327295679,1715970640437,-500.0,0.00012328,2]
[327295681,1715970640447,-500.0,0.00012328,2]
[327295683,1715970640456,-500.0,0.00012328,2]
[327295685,1715970640466,-1177.7,0.00012328,2]
[327295687,1715970640476,-1177.7,0.00012328,2]
[327295689,1715970640485,-1177.7,0.00012328,2]
[327295691,1715970640494,-500.0,0.00012328,2]
[327295693,1715970640503,-495.30832044,0.00012328,2]
[327295695,1715970640513,-500.0,0.00012328,2]
[327295697,1715970640523,-500.0,0.00012328,2]
[327295699,1715970640532,-468.14103847,0.00012328,2]
[327295701,1715970640542,-500.0,0.00012328,2]
[327295703,1715970640551,-806.97,0.00012328,2]
[327295705,1715970640561,-806.97,0.00012328,2]
[327295707,1715970640572,-500.0,0.00012328,2]
[327295709,1715970640582,-806.97,0.00012328,2]
[327295711,1715970640592,-500.0,0.00012328,2]
[327295713,1715970640601,-500.0,0.00012328,2]
[327295715,1715970640611,-279.58448674,0.00012328,2]
[327295718,1715970640621,-500.0,0.00012328,2]
[327295720,1715970640630,-500.0,0.00012328,2]
[327295722,1715970640644,-500.0,0.00012328,2]
[327295724,1715970640654,-500.0,0.00012328,2]
[327295726,1715970640663,-500.0,0.00012328,2]
[327295728,1715970640674,-500.0,0.00012328,2]
[327295730,1715970640684,-500.0,0.00012328,2]
[327295732,1715970640694,-500.0,0.00012328,2]
[327295734,1715970640703,-500.0,0.00012328,2]
[327295736,1715970640714,-500.0,0.00012328,2]
[327295738,1715970640723,-500.0,0.00012328,2]
[327295740,1715970640733,-500.0,0.00012328,2]
[327295743,1715970640742,-500.0,0.00012328,2]
[327295745,1715970640753,-500.0,0.00012328,2]
[327295747,1715970640762,-500.0,0.00012328,2]
[327295748,1715970640772,-500.0,0.00012328,2]
[327295752,1715970640781,-500.0,0.00012328,2]
[327295755,1715970640791,-500.0,0.00012328,2]
[327295758,1715970640800,-500.0,0.00012328,2]
[327295761,1715970640809,-233.41,0.00012328,2]
[327295764,1715970640818,-500.0,0.00012328,2]
[327295766,1715970640829,-500.0,0.00012328,2]
[327295768,1715970640838,-500.0,0.00012328,2]
[327295770,1715970640852,-611.85752579,0.00012328,2]
[327295772,1715970640862,-500.0,0.00012328,2]
[327295774,1715970640872,-691.16,0.00012328,2]
[327295776,1715970640882,-691.16,0.00012328,2]
[327295778,1715970640892,-691.16,0.00012328,2]
[327295780,1715970640901,-500.0,0.00012328,2]
[327295782,1715970640911,-500.0,0.00012328,2]
[327295784,1715970640923,-500.0,0.00012328,2]
[327295786,1715970640932,-208.74,0.00012328,2]
[327295788,1715970640942,-150.37435882,0.00012328,2]
[327295790,1715970640953,-500.0,0.00012328,2]
[327295792,1715970640962,-500.0,0.00012328,2]
[327295794,1715970640971,-500.0,0.00012328,2]
[327295796,1715970640980,-500.0,0.00012328,2]
[327295798,1715970640989,-279.84901123,0.00012328,2]
[327295800,1715970640999,-150.21427084,0.00012328,2]
[327295803,1715970641008,-500.0,0.00012328,2]
[327295805,1715970641018,-180.0988804,0.00012328,2]
[327295807,1715970641027,-500.0,0.00012328,2]
[327295809,1715970641036,-500.0,0.00012328,2]
[327295811,1715970641046,-500.0,0.00012328,2]
[327295813,1715970641055,-500.0,0.00012328,2]
[327295815,1715970641065,-538.48,0.00012328,2]
[327295817,1715970641074,-538.48,0.00012328,2]
[327295819,1715970641083,-538.48,0.00012328,2]
[327295821,1715970641093,-500.0,0.00012328,2]
[327295823,1715970641102,-500.0,0.00012328,2]
[327295825,1715970641111,-500.0,0.00012328,2]
[327295827,1715970641120,-500.0,0.00012328,2]
[327295829,1715970641130,-500.0,0.00012328,2]
[327295831,1715970641139,-500.0,0.00012328,2]
[327295833,1715970641148,-493.78392436,0.00012328,2]
[327295835,1715970641157,-500.0,0.00012328,2]
[327295837,1715970641167,-500.0,0.00012328,2]
[327295839,1715970641176,-470.0,0.00012328,2]
[327295841,1715970641186,-468.54644668,0.00012328,2]
[327295843,1715970641196,-500.0,0.00012328,2]
[327295845,1715970641206,-500.0,0.00012328,2]
[327295847,1715970641215,-500.0,0.00012328,2]
[327295849,1715970641224,-500.0,0.00012328,2]
[327295851,1715970641233,-500.0,0.00012328,2]
[327295853,1715970641242,-309.3981866,0.00012328,2]
[327295855,1715970641251,-500.0,0.00012328,2]
[327295857,1715970641261,-500.0,0.00012328,2]
[327295859,1715970641271,-500.0,0.00012328,2]
[327295861,1715970641280,-500.0,0.00012328,2]
[327295863,1715970641290,-10401.27232245,0.00012377,2]
[327295866,1715970641299,-225.9,0.000124,2]
[327295867,1715970641309,-2327.83056448,0.0001242,2]
[327295870,1715970641318,-782.42991749,0.0001242,2]
[327295871,1715970641327,-596.90903168,0.0001242,2]
[327295873,1715970641337,-783.37515963,0.0001242,2]
[327295875,1715970641347,-217.29472164,0.0001242,2]
[327295878,1715970641357,-1281.30696739,0.0001242,2]
[327295880,1715970641366,-303.13808998,0.00012421,2]
[327295882,1715970641376,-155.0508309,0.00012421,2]
[327295884,1715970641385,-300.0,0.00012421,2]
[327295886,1715970641395,-176.5003404,0.00012421,2]
[327295888,1715970641404,-155.0,0.00012421,2]
[327295890,1715970641414,-523.16611257,0.00012421,2]
[327295892,1715970641423,-537.03498854,0.00012421,2]
[327295894,1715970641432,-155.0,0.00012422,2]
[327295896,1715970641442,-487.0,0.00012423,2]
[327295898,1715970641456,-500.0,0.00012423,2]
[327295900,1715970641465,-500.0,0.00012423,2]
[327295902,1715970641474,-500.0,0.00012423,2]
[327295904,1715970641483,-521.8774942,0.00012423,2]
[327295906,1715970641492,-500.0,0.00012423,2]
[327295908,1715970641501,-500.0,0.00012423,2]
[327295910,1715970641510,-559.55350487,0.00012423,2]
[327295912,1715970641520,-308.67,0.00012423,2]
[327295914,1715970641529,-500.0,0.00012423,2]
[327295916,1715970641538,-500.0,0.00012423,2]
[327295918,1715970641547,-500.0,0.00012423,2]
[327295920,1715970641558,-500.0,0.00012423,2]
[327295922,1715970641567,-450.21,0.00012423,2]
[327295924,1715970641576,-150.0,0.00012423,2]
[327295926,1715970641586,-500.0,0.00012423,2]
[327295928,1715970641595,-500.0,0.00012423,2]
[327295930,1715970641604,-500.0,0.00012423,2]
[327295932,1715970641613,-500.0,0.00012423,2]
[327295934,1715970641623,-500.0,0.00012423,2]
[327295936,1715970641632,-500.0,0.00012423,2]
[327295938,1715970641641,-500.0,0.00012423,2]
[327295940,1715970641651,-500.0,0.00012423,2]
[327295942,1715970641660,-500.0,0.00012423,2]
[327295944,1715970641669,-500.0,0.00012423,2]
[327295946,1715970641679,-500.0,0.00012423,2]
[327295948,1715970641688,-500.0,0.00012423,2]
[327295950,1715970641698,-500.0,0.00012423,2]
[327295952,1715970641707,-421.66,0.00012423,2]
[327295954,1715970641717,-500.0,0.00012423,2]
[327295956,1715970641726,-500.0,0.00012423,2]
[327295958,1715970641736,-500.0,0.00012423,2]
[327295960,1715970641745,-621.35026694,0.00012423,2]
[327295962,1715970641755,-500.0,0.00012423,2]
[327295964,1715970641764,-500.0,0.00012423,2]
[327295966,1715970641774,-500.0,0.00012423,2]
[327295968,1715970641783,-500.0,0.00012423,2]
[327295970,1715970641792,-500.0,0.00012423,2]
[327295972,1715970641802,-500.0,0.00012423,2]
[327295974,1715970641811,-500.0,0.00012423,2]
[327295977,1715970641821,-500.0,0.00012423,2]
[327295979,1715970641831,-500.0,0.00012423,2]
[327295981,1715970641842,-500.0,0.00012423,2]
[327295983,1715970641851,-500.0,0.00012423,2]
[327295985,1715970641862,-500.0,0.00012423,2]
[327295987,1715970641871,-500.0,0.00012423,2]
[327295989,1715970641883,-500.0,0.00012423,2]
[327295991,1715970641892,-500.0,0.00012423,2]